bitfinex/quotes_ETHUSD_20250331
["timestamp","ask_amount","ask_price","bid_price","bid_amount"]
[1743426316235,6.13,1836.4,1836.3,5.44573]
[1743426316437,1.5971,1836.5,1836.2,11.54691]
[1743426316933,1.5971,1836.5,1836.2,6.101]
[1743426317573,1.5971,1836.5,1836.2,11.60126349]
[1743426317746,1.5971,1836.5,1836.2,11.54681]
[1743426318443,1.5971,1836.5,1836.3,5.44572]
[1743426318642,1.5523,1836.9,1836.4,5.4998334]
[1743426318852,1.5523,1836.9,1836.5,5.44503]
[1743426319276,1.5523,1836.9,1836.4,0.0544534]
[1743426319277,1.5523,1836.9,1836.6,5.44476]
[1743426319558,1.5523,1836.9,1836.7,5.44444]
[1743426320135,6.13,1837.1,1836.7,5.44444]
[1743426320136,1.5523,1837.1,1836.8,5.444]
[1743426320336,1.5523,1837.1,1836.8,10.88814]
[1743426320633,1.5523,1837.1,1836.9,5.44395]
[1743426321034,1.5523,1837.1,1836.8,5.4442]
[1743426321445,1.5523,1837.1,1836.9,5.49828408]
[1743426322255,1.5523,1837.1,1836.8,5.44411]
[1743426322762,1.5523,1837.1,1836.8,10.88826]
[1743426322976,1.5523,1837.1,1836.8,5.44409]
[1743426323277,1.5523,1837.1,1836.9,5.49831403]
[1743426323439,1.5523,1837.1,1836.9,5.44388]
[1743426323978,1.5523,1837.1,1836.9,5.44382]
[1743426324180,3.07215603,1837.2,1836.9,5.498254]
[1743426324845,3.07215603,1837.2,1836.8,6.598519]
[1743426325045,3.07215603,1837.2,1836.8,10.88821]
[1743426325384,3.07215603,1837.2,1836.9,10.88774]
[1743426325565,1.6235,1837.3,1837.1,5.44314]
[1743426325745,1.6235,1837.3,1837.1,10.88637]
[1743426325945,1.5971,1837.5,1837.2,11.54106]
[1743426326246,1.5971,1837.5,1837.2,18.137976]
[1743426326556,4.66925603,1837.5,1837.2,6.098]
[1743426327086,4.66925603,1837.5,1837.2,11.54096]
[1743426327297,1.5971,1837.5,1837.3,5.44268]
[1743426327471,1.5971,1837.5,1837.3,5.44263]
[1743426327784,3.07215603,1837.7,1837.6,5.44188]
[1743426327785,1.5879,1837.7,1837.6,5.44188]
[1743426327971,1.6379,1837.9,1837.6,5.44188]
[1743426328356,1.6379,1837.9,1837.6,5.49629498]
[1743426328541,1.6379,1837.9,1837.7,5.44155]
[1743426328741,1.6379,1837.9,1837.8,5.44128]
[1743426328947,0.05,1837.9,1837.8,5.44128]
[1743426329886,0.05,1837.9,1837.8,7.19366969]
[1743426330555,0.05,1837.9,1837.8,0.05440669]
[1743426330779,0.05,1837.9,1837.7,6.097]
[1743426330979,5.20118316,1837.9,1837.6,6.096]
[1743426331811,5.20118316,1837.9,1837.7,0.31040052]
[1743426331994,5.20118316,1837.9,1837.6,6.096]
[1743426332171,0.52011832,1837.8,1837.7,0.31040052]
[1743426332870,8.24351832,1837.8,1837.7,0.31040052]
[1743426333073,8.24351832,1837.8,1837.2,16.98186]
[1743426333271,3.49668316,1837.7,1837.3,0.31091092]
[1743426333466,3.49668316,1837.5,1837.3,0.31091092]
[1743426333904,5.07318316,1837.7,1837.3,0.31091092]
[1743426334096,6.24551331,1837.7,1837.3,0.31091092]
[1743426335401,3.49668316,1837.5,1837.3,0.31091092]
[1743426335704,1.6256,1837.4,1837.3,0.31091092]
[1743426336473,1.6256,1837.4,1836.9,0.05443265]
[1743426336681,1.6641,1837.1,1837.0,0.31129387]
[1743426336891,1.6641,1837.1,1836.7,11.53939]
[1743426337173,1.6641,1837.1,1836.8,0.31154924]
[1743426337996,1.6641,1837.1,1836.8,5.75575924]
[1743426338507,1.6641,1837.1,1836.8,0.31154924]
[1743426339384,1.6641,1837.1,1836.5,5.44508]
[1743426339581,3.49668316,1836.8,1836.6,0.31180467]
[1743426339801,1.5592,1836.7,1836.3,6.094]
[1743426340007,7.6892,1836.7,1836.4,0.31206015]
[1743426340203,7.6892,1836.7,1836.3,5.4457]
[1743426340503,7.6892,1836.7,1836.4,0.31206015]
[1743426341489,7.6892,1836.7,1836.6,5.44484]
[1743426341796,6.13,1836.7,1836.6,5.75664467]
[1743426341995,6.13,1836.7,1836.6,0.31180467]
[1743426342614,5.62098316,1836.7,1836.0,0.55008424]
[1743426342796,1.5113,1836.2,1836.1,0.29650336]
[1743426342988,1.5113,1836.2,1835.7,6.094]
[1743426343308,1.5087,1836.0,1835.8,0.27157475]
[1743426343696,1.5087,1836.0,1835.9,5.44691]
[1743426343897,1.5087,1836.0,1835.9,0.24727096]
[1743426344576,1.5087,1836.0,1835.8,5.44714]
[1743426344772,6.13,1836.2,1835.9,5.69418096]
[1743426344976,6.13,1836.2,1835.9,0.24727096]
[1743426345189,6.13,1836.2,1836.0,5.44657]
[1743426345390,6.13,1836.2,1836.1,0.24701534]
[1743426345831,6.13,1836.2,1836.1,5.69333534]
[1743426346317,8.14338316,1836.5,1836.1,12.35766887]
[1743426346814,8.14338316,1836.5,1836.1,6.34201534]
[1743426348423,8.14338316,1836.5,1836.1,11.78830534]
[1743426348719,8.14338316,1836.5,1836.1,11.78823534]
[1743426349702,1.5703,1836.8,1836.2,0.05445779]
[1743426349902,4.5703,1836.8,1836.3,10.89146]
[1743426350110,4.5703,1836.8,1836.3,10.8913]
[1743426350302,4.5703,1836.8,1836.3,11.13805978]
[1743426350823,4.5703,1836.8,1836.3,0.24675978]
[1743426351021,5.37699832,1836.8,1836.3,0.24675978]
[1743426351907,3.49668316,1836.7,1836.3,0.24675978]
[1743426352121,1.6091,1836.6,1836.3,0.24675978]
[1743426352419,3.49668316,1836.5,1836.4,0.24663202]
[1743426352600,5.10578316,1836.5,1836.0,6.095]
[1743426352805,5.10578316,1836.5,1836.1,0.24701534]
[1743426353510,5.10578316,1836.5,1836.1,5.69332534]
[1743426353697,5.10578316,1836.5,1836.1,7.41680487]
[1743426353895,1.6091,1836.5,1836.1,7.41666487]
[1743426355115,1.6091,1836.5,1836.1,5.69318534]
[1743426355857,5.10578316,1836.5,1836.1,5.69318534]
[1743426356142,5.10578316,1836.5,1836.1,0.24701534]
[1743426356947,1.6091,1836.5,1836.1,0.24701534]
[1743426357136,1.6091,1836.5,1836.1,5.44622]
[1743426357314,1.6091,1836.5,1836.2,5.67479675]
[1743426357704,1.6544,1836.8,1836.2,1.39535523]
[1743426357910,7.7844,1837.0,1836.7,5.44454]
[1743426358149,7.7844,1837.0,1836.7,4.94454]
[1743426358337,7.7844,1837.0,1836.8,0.22803031]
[1743426359046,7.7844,1837.0,1836.6,5.44482]
[1743426359344,7.7844,1837.0,1836.7,0.22811904]
[1743426359513,7.7844,1837.0,1836.6,5.17293904]
[1743426359712,7.7844,1837.0,1836.8,0.20898142]
[1743426359913,7.7844,1837.0,1836.7,5.65360912]
[1743426360117,7.7844,1837.0,1836.9,0.20885372]
[1743426360318,7.7844,1837.0,1836.8,0.20898142]
[1743426360524,7.7844,1837.0,1836.9,0.20885372]
[1743426360949,7.7844,1837.0,1836.6,5.17293904]
[1743426361135,7.7844,1837.0,1836.9,0.20885372]
[1743426361336,7.7844,1837.0,1836.3,6.093]
[1743426361337,1.5261,1836.9,1836.3,6.093]
[1743426361523,5.02278316,1836.7,1836.1,5.44618]
[1743426362032,1.5261,1836.6,1836.0,11.53946]
[1743426362233,1.5261,1836.6,1836.1,5.44627]
[1743426363449,4.5261,1836.6,1836.1,5.44627]
[1743426363648,0.45261,1836.5,1836.0,11.53958]
[1743426366422,10.6549,1836.2,1835.7,0.20886737]
[1743426366949,3.0,1836.0,1835.7,0.20886737]
[1743426367129,1.6339,1835.9,1835.7,0.20886737]
[1743426367529,1.6339,1835.9,1835.5,6.092]
[1743426367730,2.71029,1835.9,1835.3,5.44866]
[1743426367924,2.71029,1835.9,1835.6,0.19206471]
[1743426368125,2.71029,1835.9,1835.4,5.50277684]
[1743426368341,2.71029,1835.9,1835.7,0.19193685]
[1743426368545,2.71029,1835.9,1835.4,5.50277684]
[1743426368839,5.71029,1835.9,1835.4,5.50277684]
[1743426369067,3.571029,1835.8,1835.5,0.19219259]
[1743426369269,3.571029,1835.8,1835.3,11.54068]
[1743426369471,3.571029,1835.8,1835.4,0.19232047]
[1743426369676,3.571029,1835.8,1835.3,11.54068]
[1743426369889,3.571029,1835.8,1835.4,0.19232047]
[1743426370073,0.3571029,1835.7,1835.3,11.54068]
[1743426370374,3.571029,1835.8,1835.4,0.19232047]
[1743426370870,3.571029,1835.8,1835.5,0.19219259]
[1743426371072,3.571029,1835.8,1835.3,11.54052]
[1743426371244,3.0,1835.8,1835.4,0.19232047]
[1743426371445,3.0,1835.8,1835.3,11.54052]
[1743426371763,3.0,1835.8,1835.4,0.19672513]
[1743426372143,3.0,1835.8,1835.3,11.54052]
[1743426372344,3.0,1835.8,1835.5,0.19659724]
[1743426372543,3.0,1835.8,1835.4,0.19672513]
[1743426372744,3.0,1835.8,1835.6,0.19646937]
[1743426372982,3.0,1835.8,1835.5,0.19659724]
[1743426373160,3.0,1835.8,1835.7,0.19634151]
[1743426373342,3.0,1835.8,1835.6,0.19646937]
[1743426373674,3.0,1835.8,1835.7,0.19634151]
[1743426373870,3.0,1835.8,1835.3,11.54052]
[1743426374046,3.0,1835.8,1835.4,0.19672513]
[1743426374246,3.0,1835.8,1835.3,13.239468]
[1743426374447,3.0,1835.8,1835.4,0.19672513]
[1743426374643,3.0,1835.8,1835.3,7.790948]
[1743426374862,1.5231,1835.7,1835.4,0.19672513]
[1743426375066,1.97541,1835.7,1835.2,6.092]
[1743426375275,1.97541,1835.7,1835.3,0.19685303]
[1743426375574,1.97541,1835.7,1835.3,0.25133403]
[1743426375773,1.5231,1835.7,1835.3,5.70001403]
[1743426377476,1.5231,1835.7,1835.3,11.14861403]
[1743426377778,5.99544,1836.4,1835.3,11.14861403]
[1743426377779,1.5139,1836.2,1835.4,1.6171]
[1743426378091,1.5139,1836.2,1835.9,5.44687]
[1743426378292,1.5139,1836.2,1836.0,0.1981415]
[1743426378502,1.5139,1836.2,1835.8,11.53793]
[1743426378695,1.5139,1836.2,1836.0,5.44633]
[1743426378845,6.13,1836.3,1836.1,0.1980137]
[1743426379552,1.6234,1836.2,1835.8,6.091]
[1743426380045,5.12769704,1836.2,1835.8,6.091]
[1743426380278,7.6897,1836.1,1835.5,6.091]
[1743426380461,1.6168,1835.9,1835.5,6.091]
[1743426380906,1.6168,1835.9,1835.3,5.44866]
[1743426381099,1.6168,1835.9,1835.3,11.53866]
[1743426381616,1.6168,1835.9,1835.3,11.53859]
[1743426381918,1.6168,1835.9,1835.3,6.09]
[1743426382122,1.6168,1835.9,1835.3,6.14448115]
[1743426382316,1.6168,1835.9,1835.3,6.09]
[1743426382616,1.6168,1835.9,1835.2,5.44885]
[1743426383586,1.557,1835.7,1835.1,11.58923]
[1743426383922,7.687,1835.7,1835.1,11.58928]
[1743426384214,1.5536,1835.5,1835.1,11.58928]
[1743426384383,1.5536,1835.5,1835.1,5.49928]
[1743426384585,1.5536,1835.5,1835.1,5.55376632]
[1743426384784,1.5536,1835.3,1835.1,0.05]
[1743426385714,9.63429704,1835.2,1835.1,0.05]
[1743426385921,10.75308674,1835.2,1835.1,0.05]
[1743426386622,12.36368674,1835.2,1835.1,0.05]
[1743426388413,8.8593897,1835.2,1835.1,0.05]
[1743426388810,7.7406,1835.2,1835.1,0.05]
[1743426389294,11.24489704,1835.2,1835.1,0.25307731]
[1743426390411,11.24489704,1835.2,1835.1,0.05]
[1743426390412,7.7406,1835.2,1835.1,0.05]
[1743426390795,7.7406,1835.2,1835.1,0.25616002]
[1743426392025,6.13,1835.2,1835.1,0.25616002]
[1743426393231,6.743,1835.2,1835.1,0.25616002]
[1743426394007,8.3004,1835.2,1835.1,0.25616002]
[1743426396529,11.8504,1835.2,1835.1,0.25616002]
[1743426396831,11.8504,1835.2,1835.1,0.05]
[1743426399548,17.29939,1835.2,1835.1,0.05]
[1743426399713,17.29939,1835.2,1834.1,7.6626]
[1743426399714,1.545,1834.6,1834.1,7.6626]
[1743426399913,8.1299297,1834.6,1834.2,0.20664837]
[1743426400639,7.625,1834.6,1834.2,5.65845837]
[1743426401847,7.625,1834.6,1834.2,0.20664837]
[1743426402421,6.08,1834.6,1834.2,5.65841837]
[1743426402726,6.08,1834.6,1834.3,5.45158]
[1743426402917,6.08,1834.6,1834.4,0.2098674]
[1743426403435,6.08,1834.6,1834.2,5.45177]
[1743426403637,6.08,1834.6,1834.3,0.20980016]
[1743426405015,6.08,1834.6,1834.3,5.66141016]
[1743426405210,6.08,1834.6,1834.3,6.77266818]
[1743426405624,6.08,1834.6,1834.3,0.20980016]
[1743426406046,1.5894,1834.5,1834.3,0.20980016]
[1743426406241,1.5894,1834.5,1834.1,7.08136647]
[1743426406651,1.5894,1834.5,1834.2,0.20992821]
[1743426407163,7.6694,1834.5,1834.2,0.20992821]
[1743426407364,0.76694,1834.4,1834.2,0.20992821]
[1743426408150,3.08162786,1834.3,1834.2,0.20992821]
[1743426408350,4.71052786,1834.3,1834.2,0.20992821]
[1743426409038,11.19277132,1834.3,1834.2,0.20992821]
[1743426409769,8.11114346,1834.3,1834.2,0.20992821]
[1743426409930,9.35016809,1834.3,1834.2,0.20992821]
[1743426410373,12.35016809,1834.3,1834.2,0.20992821]
[1743426410671,3.0,1834.2,1834.1,0.05]
[1743426410876,3.0,1834.2,1834.1,0.26322033]
[1743426410877,9.08,1834.2,1834.1,0.26322033]
[1743426411037,10.31501681,1834.2,1834.1,0.26322033]
[1743426411683,15.4001797,1834.2,1834.1,0.26322033]
[1743426411837,11.88801681,1834.2,1834.1,0.26322033]
[1743426412268,6.08,1834.2,1834.1,0.26322033]
[1743426412843,1.5608,1834.6,1834.1,0.26322033]
[1743426413033,1.5608,1834.6,1834.2,5.45182]
[1743426413262,1.5608,1834.6,1834.3,0.21331586]
[1743426413535,4.5608,1834.6,1834.3,0.21331586]
[1743426413848,3.96824289,1834.5,1834.1,0.05]
[1743426414362,3.96824289,1834.5,1834.2,0.21344392]
[1743426415475,1.563,1834.4,1834.2,0.21344392]
[1743426417749,6.08,1834.3,1834.2,0.21344392]
[1743426418947,6.48644933,1834.3,1834.2,0.21344392]
[1743426419148,7.29139426,1834.3,1834.2,0.21344392]
[1743426420080,15.91325715,1834.3,1834.2,0.21344392]
[1743426420258,0.55,1834.2,1834.1,0.05]
[1743426420576,11.2648,1834.2,1834.1,0.2627515]
[1743426420769,11.2648,1834.2,1834.1,0.05]
[1743426420978,12.86363571,1834.2,1834.1,0.2627515]
[1743426421196,12.86363571,1834.2,1834.1,0.05]
[1743426421365,12.86363571,1834.2,1834.1,0.2627515]
[1743426421566,12.86363571,1834.2,1834.1,0.05]
[1743426421766,12.31363571,1834.2,1834.1,0.05]
[1743426422496,12.31363571,1834.2,1834.1,0.26447108]
[1743426422693,6.08,1834.2,1834.1,0.26447108]
[1743426423598,6.08,1834.5,1834.1,0.26447108]
[1743426423796,6.08,1834.5,1834.2,7.10716]
[1743426423967,6.08,1834.5,1834.2,12.55897]
[1743426424168,6.08,1834.5,1834.3,5.66573496]
[1743426424499,6.08,1834.5,1834.3,6.94301946]
[1743426424672,6.08,1834.5,1834.3,1.49149946]
[1743426424877,6.08,1834.5,1834.3,0.21421496]
[1743426425395,6.08,1834.5,1834.3,5.66572496]
[1743426425578,6.08,1834.5,1834.3,0.21421496]
[1743426426602,1.5867,1834.4,1834.3,0.21421496]
[1743426426771,2.35337,1834.4,1834.1,0.05]
[1743426427099,6.08,1834.5,1834.2,0.21434301]
[1743426427286,6.08,1834.5,1834.4,7.07627]
[1743426427490,6.08,1834.7,1834.6,5.45077]
[1743426427669,6.08,1835.0,1834.9,5.44988]
[1743426427876,6.08,1835.0,1834.9,5.66332693]
[1743426428275,6.08,1835.0,1834.9,0.21344693]
[1743426428687,6.08,1835.0,1834.7,7.6414]
[1743426428921,6.08,1835.0,1834.8,5.6636149]
[1743426429123,6.08,1835.0,1834.8,0.2135749]
[1743426430032,6.08,1835.0,1834.8,5.6635849]
[1743426430333,6.08,1835.0,1834.8,0.2135749]
[1743426431016,6.08,1835.0,1834.7,10.90079]
[1743426431334,6.84808,1835.0,1834.8,0.20572413]
[1743426431918,6.84808,1835.0,1834.6,5.45075]
[1743426432142,6.84808,1835.0,1834.7,0.2062425]
[1743426432334,6.84808,1835.0,1834.6,10.90136]
[1743426432490,6.84808,1835.0,1834.7,0.2062425]
[1743426432686,0.684808,1834.9,1834.6,5.45061]
[1743426432925,6.08,1835.0,1834.7,5.6566925]
[1743426433090,6.08,1835.0,1834.7,5.6565925]
[1743426433857,6.08,1835.0,1834.7,0.2062425]
[1743426434149,6.08,1835.0,1834.5,7.09903]
[1743426434357,6.08,1835.0,1834.6,0.20644858]
[1743426434500,0.608,1834.9,1834.6,0.20644858]
[1743426434702,0.608,1834.9,1834.6,5.65721858]
[1743426435143,0.608,1834.9,1834.6,11.10773858]
[1743426435301,0.608,1834.9,1834.6,5.65708858]
[1743426435946,0.608,1834.9,1834.6,0.20644858]
[1743426438339,6.688,1834.9,1834.6,0.20644858]
[1743426438543,0.6688,1834.8,1834.6,0.20644858]
[1743426440359,0.6688,1834.8,1834.4,5.45126]
[1743426440663,0.6688,1834.8,1834.5,0.20657659]
[1743426440664,1.6619,1834.7,1834.5,0.20657659]
[1743426441087,1.6619,1834.7,1834.3,5.45157]
[1743426441234,1.6619,1834.7,1834.6,0.20644858]
[1743426441435,1.6619,1834.7,1834.3,5.45157]
[1743426441647,1.6619,1834.7,1834.6,0.20644858]
[1743426441877,2.74411531,1834.7,1834.3,5.45152]
[1743426442478,2.74411531,1834.7,1834.4,0.20670462]
[1743426442986,2.74411531,1834.7,1834.2,10.90372]
[1743426443189,6.08,1834.6,1834.5,0.20657659]
[1743426443342,6.08,1834.6,1834.3,5.45153]
[1743426443573,6.96241153,1834.6,1834.4,0.20670462]
[1743426444193,6.96241153,1834.6,1834.1,7.01202]
[1743426444498,6.96241153,1834.6,1834.5,0.20657659]
[1743426444717,10.04266462,1834.6,1834.5,0.20884126]
[1743426445505,10.04266462,1834.6,1834.1,1.5599]
[1743426445715,1.00426646,1834.5,1834.2,0.20922538]
[1743426446073,10.77785309,1834.4,1834.2,0.20922538]
[1743426446468,9.16025309,1834.4,1834.2,0.20922538]
[1743426446683,4.5511,1834.3,1834.2,0.20922538]
[1743426446907,10.6311,1834.3,1834.2,0.20922538]
[1743426447207,6.08,1834.3,1834.2,5.45196]
[1743426447416,6.08,1834.3,1834.1,0.05]
[1743426447586,6.08,1834.3,1834.2,0.19503024]
[1743426448299,6.08,1834.7,1834.6,5.45077]
[1743426448520,6.08,1834.7,1834.6,5.64548346]
[1743426448733,7.6555,1835.1,1834.8,5.44996]
[1743426448920,6.08,1835.1,1834.9,10.89938]
[1743426449090,6.08,1835.1,1834.9,5.6429138]
[1743426449292,6.08,1835.1,1834.9,0.1933138]
[1743426449690,6.08,1835.1,1834.9,5.6431338]
[1743426449903,6.08,1835.1,1834.9,5.6430938]
[1743426450106,1.5755,1835.3,1835.0,5.44933]
[1743426450289,7.6702,1835.5,1835.1,5.6423079]
[1743426450685,7.6702,1835.5,1835.1,0.1930579]
[1743426450892,3.0,1835.4,1835.1,0.1930579]
[1743426451092,0.3,1835.3,1834.8,5.45015]
[1743426451323,4.5902,1835.3,1834.9,0.19065871]
[1743426451631,4.5902,1835.3,1834.7,7.00433]
[1743426451832,6.08,1835.2,1835.0,0.19053075]
[1743426452026,6.08,1835.2,1834.7,5.45033]
[1743426452239,6.08,1835.2,1835.1,0.19040281]
[1743426452441,7.14702,1835.2,1835.1,0.19040281]
[1743426452602,7.14702,1835.2,1834.9,5.44975]
[1743426452803,6.08,1835.2,1835.1,0.19040281]
[1743426452999,7.7267,1835.5,1835.2,5.44893]
[1743426453217,7.7267,1835.5,1835.3,5.4487]
[1743426453442,7.7267,1835.5,1835.3,0.19014697]
[1743426453641,7.7267,1835.5,1835.3,5.63880697]
[1743426454106,0.77267,1835.4,1835.3,0.19014697]
[1743426454803,6.08,1835.5,1835.3,11.08736697]
[1743426455004,6.08,1835.5,1835.3,5.63866697]
[1743426455625,6.08,1835.5,1835.3,0.19014697]
[1743426456384,6.08,1835.5,1835.4,0.19029229]
[1743426456885,6.08,1835.5,1835.1,5.44928]
[1743426457089,10.6467,1835.5,1835.4,0.19029229]
[1743426457383,3.50777324,1835.4,1834.9,7.11566]
[1743426457566,3.50777324,1835.4,1835.0,0.18647082]
[1743426457884,3.0,1835.3,1835.0,0.18647082]
[1743426458064,8.0197,1835.2,1835.0,0.18647082]
[1743426458381,6.38,1835.2,1835.1,5.63563288]
[1743426458541,6.08,1835.5,1835.4,5.4484]
[1743426458741,6.08,1835.5,1835.4,5.63498356]
[1743426459263,6.08,1835.5,1835.4,0.18658356]
[1743426459465,9.833,1835.5,1835.4,0.18658356]
[1743426459670,6.08,1835.5,1835.3,5.44854]
[1743426459852,6.08,1835.5,1835.4,0.18658356]
[1743426460569,6.08,1835.5,1835.3,5.44869]
[1743426460779,6.08,1835.5,1835.4,0.18658356]
[1743426460943,6.08,1835.5,1835.3,5.44869]
[1743426461143,6.08,1835.5,1835.4,0.18658356]
[1743426461349,6.08,1835.5,1835.4,5.4484]
[1743426461551,6.08,1835.5,1835.4,0.18658356]
[1743426461871,6.08,1835.5,1835.4,5.4484]
[1743426462066,6.08,1835.5,1835.4,0.18658356]
[1743426462485,6.08,1835.5,1835.3,5.44859]
[1743426462686,6.08,1835.5,1835.4,5.63498356]
[1743426463902,6.08,1835.5,1835.4,0.18658356]
[1743426464102,6.688,1835.5,1835.4,0.18658356]
[1743426464420,8.3066,1835.5,1835.4,0.18658356]
[1743426464628,8.3066,1835.5,1834.9,7.07683]
[1743426464774,11.3066,1835.5,1835.4,0.18658356]
[1743426464974,11.3066,1835.5,1834.9,5.44983]
[1743426465172,1.13066,1835.4,1835.0,0.18709524]
[1743426465410,4.13066,1835.4,1835.0,0.18709524]
[1743426465707,1.5713,1835.1,1835.0,0.18709524]
[1743426465924,7.6513,1835.1,1834.6,5.45073]
[1743426466225,10.6513,1835.1,1834.7,5.45042]
[1743426466501,1.06513,1835.0,1834.7,0.18747916]
[1743426466704,6.08,1835.1,1834.7,0.18747916]
[1743426467008,6.08,1835.5,1835.3,5.44847]
[1743426467224,6.08,1835.5,1835.4,5.63603751]
[1743426467604,6.08,1835.5,1835.4,0.18763751]
[1743426467807,6.08,1835.5,1835.4,5.4484]
[1743426467975,6.08,1835.5,1835.4,5.63428103]
[1743426468391,6.08,1835.5,1835.4,0.18588103]
[1743426468591,6.08,1835.5,1835.3,5.44847]
[1743426468882,6.08,1835.5,1835.0,11.51855]
[1743426468883,6.08,1835.5,1835.4,0.18588103]
[1743426469422,6.08,1835.5,1835.4,0.18478857]
[1743426469617,8.3282,1835.5,1835.4,0.18478857]
[1743426469782,8.3282,1835.5,1835.0,12.485]
[1743426469984,8.3282,1835.5,1835.1,0.18521132]
[1743426470200,12.24572633,1835.5,1835.1,0.18521132]
[1743426470372,1.77457263,1835.4,1834.7,6.95243]
[1743426470689,4.5361,1835.2,1834.8,0.18602434]
[1743426471072,10.6031,1835.2,1834.5,6.95279]
[1743426471189,10.6031,1835.2,1834.9,0.18710606]
[1743426471389,10.6031,1835.2,1834.5,6.95279]
[1743426471590,1.06031,1835.1,1834.6,0.18749001]
[1743426472317,1.06031,1835.1,1834.6,5.63821001]
[1743426472878,1.5361,1835.2,1834.8,5.45013]
[1743426473081,37.516,1835.4,1835.2,5.44873]
[1743426473382,6.08,1835.4,1835.3,5.63677772]
[1743426474117,7.5803,1835.8,1835.5,5.44782]
[1743426474315,8.33833,1835.8,1835.4,5.44835]
[1743426474516,8.33833,1835.8,1835.3,5.63664772]
[1743426474836,8.33833,1835.8,1835.3,11.08519772]
[1743426474990,8.33833,1835.8,1835.3,5.63662772]
[1743426475190,8.33833,1835.8,1835.3,0.18807772]
[1743426475502,0.833833,1835.7,1835.3,5.63675772]
[1743426475702,0.833833,1835.7,1835.3,0.18807772]
[1743426475898,10.13777324,1835.6,1835.3,0.18807772]
[1743426476216,0.55,1835.4,1834.8,6.97004]
[1743426476419,6.08,1835.3,1834.9,0.18585735]
[1743426476618,0.608,1835.2,1834.9,0.18585735]
[1743426477294,7.6611,1835.1,1834.9,0.18585735]
[1743426477492,7.6611,1835.1,1834.6,5.45075]
[1743426477688,10.6611,1835.1,1835.0,0.18658784]
[1743426477892,7.6611,1835.1,1834.6,5.45072]
[1743426478138,0.76611,1835.0,1834.6,5.45072]
[1743426478345,6.08,1834.9,1834.7,0.1870498]
[1743426478697,6.08,1834.9,1834.5,5.45107]
[1743426478892,6.08,1834.9,1834.8,0.18692181]
[1743426479129,6.08,1834.9,1834.6,5.45068]
[1743426479339,6.764611,1834.9,1834.7,0.1870498]
[1743426479498,6.764611,1834.9,1834.5,5.45107]
[1743426479836,6.764611,1834.9,1834.6,0.1871778]
[1743426481033,1.5432,1834.8,1834.6,0.1871778]
[1743426481255,6.08,1834.7,1834.6,0.1871778]
[1743426481454,7.49309732,1834.7,1834.1,10.95433]
[1743426481756,6.08,1834.6,1834.1,5.50211]
[1743426482538,1.6255,1834.5,1834.1,0.05]
[1743426482737,4.6255,1834.5,1834.1,0.05]
[1743426482934,6.54255,1834.4,1834.1,0.05]
[1743426483137,9.08,1834.3,1834.1,0.05]
[1743426483825,7.6455,1834.2,1834.1,0.05]
[1743426484025,11.70327324,1834.2,1834.1,0.05]
[1743426484962,10.13777324,1834.2,1834.1,0.05]
[1743426485137,6.03,1834.1,1833.3,5.45441]
[1743426485342,7.05777324,1833.9,1833.2,1.5995]
[1743426485734,1.6505,1833.7,1833.2,1.5995]
[1743426485958,6.03,1833.6,1833.1,0.05]
[1743426486165,6.03,1833.6,1833.1,10.96011]
[1743426486354,6.79805,1833.6,1833.1,5.50504]
[1743426487949,6.79805,1833.6,1833.1,0.05]
[1743426488461,6.79805,1833.6,1833.2,5.45492]
[1743426488667,6.79805,1833.6,1833.1,5.50514]
[1743426489460,3.0,1833.5,1833.1,0.05]
[1743426489661,5.40887324,1833.4,1833.1,0.05]
[1743426490945,5.40887324,1833.4,1833.2,0.15527593]
[1743426490946,3.0,1833.3,1833.2,0.15527593]
[1743426491145,9.03,1833.3,1833.2,0.15527593]
[1743426491867,9.58,1833.3,1833.2,0.15527593]
[1743426492066,17.213,1833.3,1833.2,0.15527593]
[1743426492238,19.47518732,1833.3,1833.2,0.15527593]
[1743426492440,19.47518732,1833.3,1833.1,0.05]
[1743426492772,6.50777324,1833.2,1833.1,0.05]
[1743426492969,7.05777324,1833.2,1833.1,0.20540414]
[1743426495746,13.12277324,1833.2,1833.1,0.20540414]
[1743426495950,15.46187684,1833.2,1833.1,0.20540414]
[1743426496351,15.46187684,1833.2,1833.1,0.05]
[1743426496866,21.49187684,1833.2,1833.1,0.05]
[1743426497245,21.49187684,1833.2,1833.1,0.21163322]
[1743426497645,17.4341036,1833.2,1833.1,0.21163322]
[1743426497876,17.4341036,1833.2,1833.1,0.05]
[1743426498083,9.03,1833.2,1833.1,0.05]
[1743426498550,9.03,1833.2,1833.1,0.21432103]
[1743426501987,6.03,1833.2,1833.1,0.21432103]
[1743426502181,37.494,1833.4,1833.1,5.66945103]
[1743426502767,40.84092419,1833.4,1833.1,5.66945103]
[1743426502982,37.494,1833.4,1833.1,11.12452103]
[1743426503556,37.494,1833.4,1833.2,5.45493]
[1743426503781,37.494,1833.4,1833.3,0.16406462]
[1743426504199,40.494,1833.4,1833.3,0.16406462]
[1743426504359,40.494,1833.4,1833.2,5.45481]
[1743426504682,40.494,1833.4,1833.3,0.16406462]
[1743426505367,3.0,1833.3,1833.1,10.96017]
[1743426505684,3.0,1833.3,1833.2,5.61913282]
[1743426506087,9.03,1833.4,1833.3,5.45464]
[1743426506464,9.03,1833.4,1833.3,5.61870462]
[1743426507197,9.03,1833.4,1833.3,0.16406462]
[1743426507563,9.03,1833.4,1833.1,10.96027]
[1743426507764,9.933,1833.4,1833.2,0.16419282]
[1743426507983,9.933,1833.4,1833.2,5.61912282]
[1743426508189,9.03,1833.4,1833.2,5.61902282]
[1743426508591,9.03,1833.4,1833.2,0.16419282]